{"text_format":"3","workbook":"xlsx","n_sheets":2,"sheets":["Analiza portfela","Wykres kołowy analizy portfela"],"not_rendered":{"charts":2,"images":1,"defined_names":2},"unopened":[{"sheet":"Wykres kołowy analizy portfela","index":1,"reason":"not_a_worksheet"}],"read":"whole","date_system":"1900"}

{"sheet":"Analiza portfela","index":0,"n_rows":9,"n_cols":11,"rows_kept":9,"merged":[[0,0,1,5],[0,6,0,8],[0,9,0,10],[1,6,1,8],[1,9,1,10],[2,0,3,5],[2,6,2,8],[2,9,2,10],[3,6,3,8],[3,9,3,10]]}
["Analiza portfela",{"$nulls":5},"Łączny koszt utrzymania kont",null,null,{"$f":"SUM(G6:G8)","v":null}]
[{"$nulls":6},"Wartość kont",null,null,{"$f":"SUM(I6:I8)","v":null}]
[{"$f":"TODAY()","v":null},{"$nulls":5},"Niezrealizowany zysk/strata w zł",null,null,{"$f":"J2-J1","v":null}]
[{"$nulls":6},"Niezrealizowany zysk/strata w %",null,null,{"$f":"(J2/J1)-100%","v":null}]
["Nazwa inwestycji","Nazwa lub numer konta","Symbol","Ilość","Cena zakupu na udział","Opłaty handlowe","Koszt całkowity (cena zakupu + opłaty)","Notowanie bieżące","Wartość rynkowa","Zysk/strata (zł)","Zysk/strata (%)"]
["A. Datum Corporation","Woodgrove Bank","AAAA",100,{"v":49,"d":"49.00 zł"},{"v":29,"d":"29.00 zł"},{"$f":"([Ilość]*[Cena zakupu na udział])+[Opłaty handlowe]","v":null},{"v":56.99,"d":"56.99 zł"},{"$f":"[Ilość]*[Notowanie bieżące]","v":null},{"$f":"[Wartość rynkowa]-[[Koszt całkowity (cena zakupu + opłaty)]]","v":null},{"$f":"JEŻELI(CZY.BŁ([Wartość rynkowa]/[Koszt całkowity (cena zakupu + opłaty)]);\"\";([Wartość rynkowa]/[Koszt całkowity (cena zakupu + opłaty)])-100%)","v":null}]
["Adventure Works","Woodgrove Bank","AWAW",250,{"v":21.56,"d":"21.56 zł"},{"v":13,"d":"13.00 zł"},{"$f":"([Ilość]*[Cena zakupu na udział])+[Opłaty handlowe]","v":null},{"v":19.13,"d":"19.13 zł"},{"$f":"[Ilość]*[Notowanie bieżące]","v":null},{"$f":"[Wartość rynkowa]-[[Koszt całkowity (cena zakupu + opłaty)]]","v":null},{"$f":"JEŻELI(CZY.BŁ([Wartość rynkowa]/[Koszt całkowity (cena zakupu + opłaty)]);\"\";([Wartość rynkowa]/[Koszt całkowity (cena zakupu + opłaty)])-100%)","v":null}]
["Wingtip Toys","Woodgrove Bank","WWTT",1200,{"v":7.01,"d":"7.01 zł"},{"v":26,"d":"26.00 zł"},{"$f":"([Ilość]*[Cena zakupu na udział])+[Opłaty handlowe]","v":null},{"v":7.56,"d":"7.56 zł"},{"$f":"[Ilość]*[Notowanie bieżące]","v":null},{"$f":"[Wartość rynkowa]-[[Koszt całkowity (cena zakupu + opłaty)]]","v":null},{"$f":"JEŻELI(CZY.BŁ([Wartość rynkowa]/[Koszt całkowity (cena zakupu + opłaty)]);\"\";([Wartość rynkowa]/[Koszt całkowity (cena zakupu + opłaty)])-100%)","v":null}]
["Razem",{"$nulls":5},{"$f":"SUMY.CZĘŚCIOWE(109;[Koszt całkowity (Cena zakupu + Opłaty)])","v":null},null,{"$f":"SUMY.CZĘŚCIOWE(109;[Wartość rynkowa])","v":null},{"$f":"SUMY.CZĘŚCIOWE(109;[Zysk/strata (zł)])","v":null},{"$f":"Tabela1[[#Sumy];[Wartość rynkowa]]/Tabela1[[#Sumy];[Koszt całkowity (cena zakupu + opłaty)]]-100%","v":null}]